fUST/lending_fUST_20250708
["ID","MTS","AMOUNT","RATE_DAILY","PERIOD"]
[370358331,1751978375823,-172.304309,0.00019178,2]
[370358332,1751978375843,-172.304309,0.00019178,2]
[370358333,1751978375863,-172.304309,0.00019178,2]
[370358334,1751978375882,-172.304309,0.00019178,2]
[370358335,1751978375901,-172.304309,0.00019178,2]
[370358336,1751978375922,-172.304309,0.00019178,2]
[370358337,1751978375943,-453.42351,0.00019178,2]
[370358338,1751978375964,-619.881746,0.00019178,2]
[370358339,1751978375985,-619.881746,0.00019178,2]
[370358340,1751978376006,-460.0,0.00019178,2]
[370358341,1751978376026,-619.881746,0.00019178,2]
[370358342,1751978376047,-619.881746,0.00019178,2]
[370358343,1751978376067,-172.304309,0.00019178,2]
[370358344,1751978376089,-619.881746,0.00019178,2]
[370358345,1751978376112,-172.304309,0.00019178,2]
[370358346,1751978376134,-619.881746,0.00019178,2]
[370358347,1751978376157,-172.304309,0.00019178,2]
[370358348,1751978376179,-619.881746,0.00019178,2]
[370358349,1751978376200,-172.304309,0.00019178,2]
[370358350,1751978376224,-619.881746,0.00019178,2]
[370358351,1751978376244,-172.304309,0.00019178,2]
[370358352,1751978376266,-172.304309,0.00019178,2]
[370358353,1751978376288,-172.304309,0.00019178,2]
[370358354,1751978376309,-172.304309,0.00019178,2]
[370358355,1751978376330,-168.30913,0.00019178,2]
[370358356,1751978376357,-168.30913,0.00019178,2]
[370358357,1751978376382,-168.30913,0.00019178,2]
[370358358,1751978376404,-168.30913,0.00019178,2]
[370358359,1751978376554,-168.30913,0.00019178,2]
[370358360,1751978376577,-168.30913,0.00019178,2]
[370358361,1751978376600,-168.30913,0.00019178,2]
[370358362,1751978376623,-168.30913,0.00019178,2]
[370358363,1751978376644,-460.0,0.00019178,2]
[370358364,1751978376664,-168.30913,0.00019178,2]
[370358365,1751978376687,-168.30913,0.00019178,2]
[370358366,1751978376709,-168.30913,0.00019178,2]
[370358367,1751978376730,-168.30913,0.00019178,2]
[370358368,1751978376751,-159.70448332,0.00019178,2]
[370358369,1751978376771,-168.30913,0.00019178,2]
[370358370,1751978376791,-1203.29,0.00019178,2]
[370358371,1751978376812,-168.30913,0.00019178,2]
[370358372,1751978376832,-168.30913,0.00019178,2]
[370358373,1751978376852,-388.900899,0.00019178,2]
[370358374,1751978376873,-168.30913,0.00019178,2]
[370358375,1751978376893,-388.900899,0.00019178,2]
[370358376,1751978376913,-358.44706921,0.00019178,2]
[370358378,1751978578331,-150.0,0.000189,2]
[370358379,1751978578354,-211.63791471,0.00019052,2]
[370358380,1751978578376,-138.36208529,0.00019078,2]
[370358381,1751978633741,587.83888878,0.00026137,120]
[370358424,1751979032514,-2509.21198036,0.00018728,2]
[370358431,1751979032570,-2490.78801964,0.00018728,2]
[370358433,1751979032580,-198.06274001,0.00018917,2]
[370358435,1751979032588,-300.0,0.00019077,2]
[370358437,1751979032598,-1085.31513628,0.00019077,2]
[370358449,1751979038403,-114.68486372,0.00019077,2]
[370358450,1751979038413,-410.50664683,0.00019078,2]
[370358451,1751979038423,-1646.0,0.00019078,2]
[370358452,1751979038432,-410.5066468,0.00019147,2]
[370358453,1751979038442,-427.679548,0.00019166,2]
[370358454,1751979038451,-500.0,0.00019166,2]
[370358455,1751979038460,-500.0,0.00019166,2]
[370358456,1751979038471,-7.40384122,0.00019166,2]
[370358457,1751979038515,-667.1387,0.00019166,2]
[370358485,1751979040660,-1167.42,0.00019166,2]
[370358488,1751979040672,-1276.41877759,0.00019166,2]
[370358490,1751979040682,-500.0,0.00019166,2]
[370358492,1751979040691,-159.76557058,0.00019166,2]
[370358511,1751979040865,-61.54135328,0.00019166,2]
[370358513,1751979040877,-278.69307614,0.00019166,2]
[370358515,1751979040886,-161.30692386,0.00019166,2]
[370358781,1751979043638,-338.69307614,0.00019166,2]
[370358783,1751979043648,-174.28815017,0.00019166,2]
[370358785,1751979043657,-207.4,0.00019166,2]
[370358787,1751979043666,-157.33457765,0.00019172,2]
[370358791,1751979043681,-346.25116141,0.00019172,2]
[370358793,1751979043690,-238.51557696,0.00019172,2]
[370359057,1751979046449,-0.38549588,0.00019172,2]
[370359059,1751979046459,-500.0,0.00019172,2]
[370359061,1751979046469,-500.0,0.00019172,2]
[370359064,1751979046480,-500.0,0.00019172,2]
[370359066,1751979046490,-142.55802797,0.00019172,2]
[370359251,1751979048272,-277.38375,0.00019172,2]
[370359256,1751979048306,-80.05822203,0.00019172,2]
[370359258,1751979048316,-239.9196925,0.00019172,2]
[370359260,1751979048325,-500.0,0.00019172,2]
[370359262,1751979048335,-500.0,0.00019172,2]
[370359264,1751979048345,-500.0,0.00019172,2]
[370359266,1751979048354,-282.65369697,0.00019172,2]
[370359268,1751979048364,-500.0,0.00019172,2]
[370359270,1751979048373,-500.0,0.00019172,2]
[370359272,1751979048382,-500.0,0.00019172,2]
[370359274,1751979048393,-500.0,0.00019172,2]
[370359276,1751979048407,-500.0,0.00019172,2]
[370359278,1751979048416,-500.0,0.00019172,2]
[370359280,1751979048425,-500.0,0.00019172,2]
[370359282,1751979048435,-620.0,0.00019172,2]
[370359284,1751979048446,-500.0,0.00019172,2]
[370359286,1751979048455,-500.0,0.00019172,2]
[370359288,1751979048464,-500.0,0.00019172,2]
[370359290,1751979048475,-500.0,0.00019172,2]
[370359292,1751979048484,-500.0,0.00019172,2]
[370359294,1751979048494,-500.0,0.00019172,2]
[370359296,1751979048503,-500.0,0.00019172,2]
[370359298,1751979048513,-500.0,0.00019172,2]
[370359300,1751979048522,-500.0,0.00019172,2]
[370359302,1751979048531,-500.0,0.00019172,2]
[370359304,1751979048541,-500.0,0.00019172,2]
[370359306,1751979048550,-500.0,0.00019172,2]
[370359308,1751979048560,-500.0,0.00019172,2]
[370359310,1751979048570,-500.0,0.00019172,2]
[370359312,1751979048580,-500.0,0.00019172,2]
[370359314,1751979048589,-332.58259155,0.00019172,2]
[370359328,1751979048719,-500.0,0.00019172,2]
[370359329,1751979048730,-500.0,0.00019172,2]
[370359330,1751979048740,-500.0,0.00019172,2]
[370359331,1751979048749,-500.0,0.00019172,2]
[370359332,1751979048759,-500.0,0.00019172,2]
[370359333,1751979048768,-500.0,0.00019172,2]
[370359334,1751979048778,-500.0,0.00019172,2]
[370359335,1751979048787,-500.0,0.00019172,2]
[370359336,1751979048797,-500.0,0.00019172,2]
[370359337,1751979048806,-500.0,0.00019172,2]
[370359338,1751979048815,-500.0,0.00019172,2]
[370359339,1751979048825,-500.0,0.00019172,2]
[370359340,1751979048833,-500.0,0.00019172,2]
[370359341,1751979048842,-500.0,0.00019172,2]
[370359342,1751979048852,-500.0,0.00019172,2]
[370359343,1751979048861,-500.0,0.00019172,2]
[370359344,1751979048871,-500.0,0.00019172,2]
[370359345,1751979048881,-500.0,0.00019172,2]
[370359346,1751979048890,-500.0,0.00019172,2]
[370359347,1751979048899,-500.0,0.00019172,2]
[370359348,1751979048909,-500.0,0.00019172,2]
[370359349,1751979048918,-500.0,0.00019172,2]
[370359350,1751979048927,-500.0,0.00019172,2]
[370359351,1751979048936,-500.0,0.00019172,2]
[370359353,1751979048946,-500.0,0.00019172,2]
[370359355,1751979048955,-342.50229908,0.00019172,2]
[370359357,1751979048964,-500.0,0.00019172,2]
[370359359,1751979048974,-500.0,0.00019172,2]
[370359361,1751979048983,-222.83905479,0.00019172,2]
[370359363,1751979048992,-500.0,0.00019172,2]
[370359365,1751979049002,-500.0,0.00019172,2]
[370359367,1751979049011,-500.0,0.00019172,2]
[370359369,1751979049020,-500.0,0.00019172,2]
[370359371,1751979049029,-500.0,0.00019172,2]
[370359373,1751979049040,-500.0,0.00019172,2]
[370359375,1751979049049,-500.0,0.00019172,2]
[370359377,1751979049058,-500.0,0.00019172,2]
[370359379,1751979049068,-500.0,0.00019172,2]
[370359381,1751979049077,-500.0,0.00019172,2]
[370359383,1751979049086,-500.0,0.00019172,2]
[370359385,1751979049095,-500.0,0.00019172,2]
[370359386,1751979049105,-500.0,0.00019172,2]
[370359388,1751979049115,-500.0,0.00019172,2]
[370359390,1751979049124,-500.0,0.00019172,2]
[370359392,1751979049133,-500.0,0.00019172,2]
[370359394,1751979049143,-488.27027174,0.00019172,2]
[370359397,1751979049156,-11.72972826,0.00019172,2]
[370359399,1751979049167,-500.0,0.00019172,2]
[370359401,1751979049177,-500.0,0.00019172,2]
[370359403,1751979049187,-500.0,0.00019172,2]
[370359405,1751979049196,-500.0,0.00019172,2]
[370359407,1751979049206,-500.0,0.00019172,2]
[370359409,1751979049215,-500.0,0.00019172,2]
[370359411,1751979049225,-500.0,0.00019172,2]
[370359413,1751979049234,-500.0,0.00019172,2]
[370359415,1751979049244,-500.0,0.00019172,2]
[370359417,1751979049253,-500.0,0.00019172,2]
[370359418,1751979049263,-500.0,0.00019172,2]
[370359420,1751979049272,-500.0,0.00019172,2]
[370359423,1751979049282,-500.0,0.00019172,2]
[370359425,1751979049292,-500.0,0.00019172,2]
[370359427,1751979049301,-200.0,0.00019175,10]
[370359428,1751979049310,-101.55293079,0.00019178,2]
[370359430,1751979049320,-388.900899,0.00019178,2]
[370359432,1751979049329,-388.900899,0.00019178,2]
[370359434,1751979049339,-388.900899,0.00019178,2]
[370359436,1751979049348,-388.900899,0.00019178,2]
[370359438,1751979049358,-388.900899,0.00019178,2]
[370359440,1751979049368,-388.900899,0.00019178,2]
[370359442,1751979049377,-388.900899,0.00019178,2]
[370359444,1751979049386,-388.900899,0.00019178,2]
[370359446,1751979049396,-388.900899,0.00019178,2]
[370359448,1751979049409,-388.900899,0.00019178,2]
[370359450,1751979049419,-460.0,0.00019178,2]
[370359452,1751979049428,-388.900899,0.00019178,2]
[370359454,1751979049438,-388.900899,0.00019178,2]
[370359456,1751979049449,-388.900899,0.00019178,2]
[370359458,1751979049458,-388.900899,0.00019178,2]
[370359460,1751979049467,-367.33294468,0.00019178,2]
[370359462,1751979049477,-151.997038,0.00019178,2]
[370359464,1751979049488,-460.0,0.00019178,2]
[370359466,1751979049497,-460.0,0.00019178,2]
[370359468,1751979049507,-460.0,0.00019178,2]
[370359470,1751979049516,-460.0,0.00019178,2]
[370359472,1751979049525,-460.0,0.00019178,2]
[370359474,1751979049535,-299.26523168,0.00019178,2]
[370359476,1751979049545,-460.0,0.00019178,2]
[370359478,1751979049556,-301.78844429,0.00019178,2]
[370359480,1751979049565,-469.8692661,0.00019178,2]
[370359482,1751979049575,-460.0,0.00019178,2]
[370359484,1751979049584,-363.02600154,0.00019178,2]
[370360957,1751979121124,158.27145,0.00013699,2]
[370360959,1751979167060,574.31197206,0.00025254,120]
[370360961,1751979254618,-164.58280914,0.00018134,2]
[370360962,1751979256137,-278.4437189,0.00018134,2]
[370360963,1751979257864,-256.37361367,0.00018134,2]
[370360964,1751979262120,-191.38543658,0.00018134,2]
[370360965,1751979265969,-370.24372591,0.00018134,2]
[370360966,1751979269472,-455.44556036,0.00018134,2]
[370360967,1751979272231,-368.14898044,0.00018134,2]
[370360968,1751979278809,-298.67087276,0.00018134,2]
[370360969,1751979283090,-385.18917768,0.00018134,2]
[370360970,1751979285770,-328.5718872,0.00018134,2]
[370360971,1751979288404,-171.4281128,0.00018134,2]
[370360972,1751979292387,-232.75408322,0.00018134,2]
[370360973,1751979294915,-155.44047788,0.00018134,2]
[370360974,1751979296618,-168.16811945,0.00018134,2]
[370360975,1751979298690,-411.80447507,0.00018134,2]
[370360977,1751979303374,-169.57101679,0.00018134,2]
[370360978,1751979305832,-223.07049723,0.00018134,2]
[370360979,1751979311336,-333.28170325,0.00018134,2]
[370360980,1751979316814,-376.92950277,0.00018134,2]
[370360981,1751979322655,-266.71829675,0.00018134,2]
[370360982,1751979326681,-417.95694637,0.00018134,2]
[370360985,1751979328755,-288.80931988,0.00018134,2]
[370360986,1751979330886,-183.72149123,0.00018134,2]
[370360987,1751979332469,-153.27325586,0.00018134,2]
[370360988,1751979334670,-325.85579292,0.00018134,2]
[370360989,1751979336902,-401.74900713,0.00018134,2]
[370360990,1751979339568,-224.69415587,0.00018134,2]
[370360991,1751979341949,-925.0840607,0.00018134,2]
[370360992,1751979344105,-272.32768136,0.00018134,2]
[370360993,1751979347380,-437.81064986,0.00018134,2]
[370360994,1751979350606,-169.57101679,0.00018134,2]
[370360995,1751979353308,-198.70489704,0.00018134,2]
[370360996,1751979355490,-321.20670461,0.00018134,2]
[370360997,1751979358510,-73.01295253,0.00018134,2]
[370361000,1751979542426,-5000.0,0.0001859,2]
[370361001,1751979542447,-153.27325586,0.00018778,2]
[370361002,1751979542469,-1200.0,0.00018878,2]
[370361003,1751979542491,-300.0,0.00018878,2]
[370361004,1751979542513,-300.0,0.00018879,2]
[370361005,1751979542534,-300.0,0.00018879,2]
[370361006,1751979542559,-300.0,0.00018879,2]
[370361007,1751979542583,-300.0,0.00018879,2]
[370361008,1751979542604,-1200.0,0.00018879,2]
[370361009,1751979542627,-185.4929215,0.00019045,2]
[370361010,1751979542648,-1626.27102409,0.00019045,2]
[370361011,1751979542668,-291.81293668,0.00019061,2]
[370361012,1751979542689,-500.0,0.00019061,2]
[370361013,1751979542709,-500.0,0.00019061,2]
[370361014,1751979542732,-500.0,0.00019061,2]
[370361015,1751979542753,-500.0,0.00019061,2]
[370361016,1751979542774,-370.28695462,0.00019061,2]
[370361017,1751979542796,-500.0,0.00019061,2]
[370361018,1751979542819,-500.0,0.00019061,2]
[370361019,1751979542840,-500.0,0.00019061,2]
[370361020,1751979542861,-319.27109673,0.00019061,2]
[370361021,1751979542881,-500.0,0.00019061,2]
[370361022,1751979542902,-500.0,0.00019061,2]
[370361023,1751979542924,-500.0,0.00019061,2]
[370361024,1751979542945,-313.60274634,0.00019061,2]
[370361025,1751979542966,-500.0,0.00019061,2]
[370361026,1751979542987,-500.0,0.00019061,2]
[370361027,1751979543008,-500.0,0.00019061,2]
[370361028,1751979543034,-500.0,0.00019061,2]
[370361029,1751979543058,-500.0,0.00019061,2]
[370361030,1751979543083,-500.0,0.00019061,2]
[370361031,1751979543106,-500.0,0.00019061,2]
[370361032,1751979543128,-500.0,0.00019061,2]
[370361033,1751979543149,-284.2721027,0.00019061,2]
[370361034,1751979543172,-500.0,0.00019061,2]
[370361035,1751979543194,-500.0,0.00019061,2]
[370361036,1751979543216,-522.28390548,0.00019061,2]
[370361037,1751979543240,-500.0,0.00019061,2]
[370361038,1751979543261,-500.0,0.00019061,2]
[370361039,1751979543290,-500.0,0.00019061,2]
[370361040,1751979543310,-500.0,0.00019061,2]
[370361041,1751979543331,-500.0,0.00019061,2]
[370361042,1751979543354,-500.0,0.00019061,2]
[370361043,1751979543376,-500.0,0.00019061,2]
[370361044,1751979543398,-500.0,0.00019061,2]
[370361045,1751979543420,-500.0,0.00019061,2]
[370361046,1751979543584,-339.49494546,0.00019061,2]
[370361047,1751979543610,-543.87742062,0.00019061,2]
[370361048,1751979543633,-500.0,0.00019061,2]
[370361049,1751979543656,-220.55271097,0.00019061,2]
[370361050,1751979543677,-500.0,0.00019061,2]
[370361051,1751979543700,-500.0,0.00019061,2]
[370361052,1751979543723,-500.0,0.00019061,2]
[370361053,1751979543745,-500.0,0.00019061,2]
[370361054,1751979543767,-500.0,0.00019061,2]
[370361055,1751979543790,-500.0,0.00019061,2]
[370361056,1751979543815,-500.0,0.00019061,2]
[370361057,1751979543836,-500.0,0.00019061,2]
[370361058,1751979543858,-500.0,0.00019061,2]
[370361059,1751979543881,-500.0,0.00019061,2]
[370361060,1751979543904,-500.0,0.00019061,2]
[370361061,1751979543926,-500.0,0.00019061,2]
[370361062,1751979543947,-500.0,0.00019061,2]
[370361063,1751979543970,-500.0,0.00019061,2]
[370361064,1751979543992,-500.0,0.00019061,2]
[370361065,1751979544018,-500.0,0.00019061,2]
[370361066,1751979544039,-500.0,0.00019061,2]
[370361067,1751979544061,-500.0,0.00019061,2]
[370361068,1751979544083,-500.0,0.00019061,2]
[370361069,1751979544106,-500.0,0.00019061,2]
[370361070,1751979544128,-500.0,0.00019061,2]
[370361071,1751979544152,-500.0,0.00019061,2]
[370361072,1751979544175,-500.0,0.00019061,2]
[370361073,1751979544199,-500.0,0.00019061,2]
[370361074,1751979544221,-500.0,0.00019061,2]
[370361075,1751979544245,-500.0,0.00019061,2]
[370361076,1751979544268,-500.0,0.00019061,2]
[370361077,1751979544292,-500.0,0.00019061,2]
[370361078,1751979544315,-500.0,0.00019061,2]
[370361079,1751979544342,-500.0,0.00019061,2]
[370361080,1751979544363,-463.7279289,0.00019061,2]
[370361081,1751979544390,-500.0,0.00019061,2]
[370361082,1751979544413,-500.0,0.00019061,2]
[370361083,1751979544437,-500.0,0.00019061,2]
[370361084,1751979544460,-500.0,0.00019061,2]
[370361085,1751979544484,-500.0,0.00019061,2]
[370361086,1751979544507,-500.0,0.00019061,2]
[370361087,1751979544531,-500.0,0.00019061,2]
[370361088,1751979544565,-500.0,0.00019061,2]
[370361089,1751979544591,-500.0,0.00019061,2]
[370361090,1751979544614,-500.0,0.00019061,2]
[370361091,1751979544639,-500.0,0.00019061,2]
[370361092,1751979544662,-500.0,0.00019061,2]
[370361093,1751979544685,-500.0,0.00019061,2]
[370361094,1751979544709,-500.0,0.00019061,2]
[370361095,1751979544734,-394.89678552,0.00019061,2]
[370361096,1751979544757,-500.0,0.00019061,2]
[370361097,1751979544781,-500.0,0.00019061,2]
[370361098,1751979544803,-500.0,0.00019061,2]
[370361099,1751979544828,-500.0,0.00019061,2]
[370361100,1751979544851,-500.0,0.00019061,2]
[370361101,1751979544874,-500.0,0.00019061,2]
[370361102,1751979544897,-500.0,0.00019061,2]
[370361103,1751979544921,-500.0,0.00019061,2]
[370361104,1751979544944,-500.0,0.00019061,2]
[370361105,1751979544968,-500.0,0.00019061,2]
[370361106,1751979544994,-500.0,0.00019061,2]
[370361107,1751979545018,-500.0,0.00019061,2]
[370361108,1751979545042,-500.0,0.00019061,2]
[370361109,1751979545067,-500.0,0.00019061,2]
[370361110,1751979545091,-500.0,0.00019061,2]
[370361111,1751979545116,-500.0,0.00019061,2]
[370361112,1751979545138,-500.0,0.00019061,2]
[370361113,1751979545162,-500.0,0.00019061,2]
[370361114,1751979545183,-500.0,0.00019061,2]
[370361115,1751979545205,-500.0,0.00019061,2]
[370361116,1751979545228,-500.0,0.00019061,2]
[370361117,1751979545251,-500.0,0.00019061,2]
[370361118,1751979545274,-500.0,0.00019061,2]
[370361119,1751979545296,-500.0,0.00019061,2]
[370361120,1751979545319,-500.0,0.00019061,2]
[370361121,1751979545342,-500.0,0.00019061,2]
[370361122,1751979545364,-500.0,0.00019061,2]
[370361123,1751979545387,-500.0,0.00019061,2]
[370361124,1751979545412,-266.05329388,0.00019061,2]
[370361125,1751979545434,-500.0,0.00019061,2]
[370361126,1751979545456,-500.0,0.00019061,2]
[370361127,1751979545481,-500.0,0.00019061,2]
[370361128,1751979545505,-500.0,0.00019061,2]
[370361129,1751979545531,-500.0,0.00019061,2]
[370361130,1751979545562,-500.0,0.00019061,2]
[370361131,1751979545591,-500.0,0.00019061,2]
[370361132,1751979545617,-185.49292149,0.00019062,2]
[370361133,1751979545644,-649.33704916,0.00019062,2]
[370361134,1751979577988,300.45137935,0.00025256,60]
[370361135,1751980012121,-153.27249171,0.00018584,2]
[370361136,1751980115988,-161.91364474,0.00018398,2]
[370361137,1751980117639,-219.53189939,0.00018398,2]
[370361138,1751980120261,-158.72936752,0.00018398,2]
[370361139,1751980122034,-615.01007625,0.00018398,2]
[370361140,1751980124726,-169.57101679,0.00018398,2]
[370361141,1751980126943,-451.18690228,0.00018398,2]
[370361142,1751980130549,-403.0942462,0.00018398,2]
[370361191,1751980236270,229.09905174,0.00017846,2]
[370361203,1751980237595,-2820.96284683,0.00018398,2]
[370361205,1751980237605,-1390.32044904,0.00018962,2]
[370361207,1751980237615,-207.4,0.00019034,2]
[370361209,1751980237624,-690.642,0.00019034,2]
[370361211,1751980237634,-364.48,0.00019035,3]
[370361213,1751980237643,-182.24,0.00019035,3]
[370361215,1751980237653,-546.72,0.00019035,3]
[370361218,1751980237674,-253.78905653,0.00019035,2]
[370361220,1751980237684,-300.0,0.00019041,2]
[370361223,1751980237695,-368.17808293,0.00019042,2]
[370361226,1751980237705,-162.63643655,0.00019042,2]
[370361228,1751980237714,-500.0,0.00019042,2]
[370361230,1751980237724,-500.0,0.00019042,2]
[370361232,1751980237734,-500.0,0.00019042,2]
[370361234,1751980237744,-191.17252344,0.00019042,2]
[370361237,1751980237754,-476.03023363,0.00019042,2]
[370361239,1751980237763,-500.0,0.00019042,2]
[370361241,1751980237773,-204.38832727,0.00019042,2]
[370361243,1751980237783,-500.0,0.00019042,2]
[370361245,1751980237795,-500.0,0.00019042,2]
[370361247,1751980237805,-500.0,0.00019042,2]
[370361249,1751980237819,-576.60532939,0.00019042,2]
[370361251,1751980237829,-493.19713401,0.00019042,2]
[370361254,1751980237838,-224.69821172,0.00019042,2]
[370361256,1751980237849,-500.0,0.00019044,2]
[370361258,1751980237860,-586.54385458,0.00019044,2]
[370361260,1751980237870,-500.0,0.00019044,2]
[370361262,1751980237879,-500.0,0.00019044,2]
[370361264,1751980237892,-500.0,0.00019044,2]
[370361267,1751980237902,-500.0,0.00019044,2]
[370361269,1751980237912,-300.0,0.00019044,2]
[370361271,1751980237922,-500.0,0.00019044,2]
[370361273,1751980237932,-631.42653504,0.00019044,2]
[370361275,1751980237943,-631.42653504,0.00019044,2]
[370361277,1751980237953,-631.42653504,0.00019044,2]
[370361279,1751980237963,-631.42653504,0.00019044,2]
[370361281,1751980237973,-631.42653504,0.00019044,2]
[370361283,1751980237982,-631.42653504,0.00019044,2]
[370361285,1751980237992,-631.42653504,0.00019044,2]
[370361287,1751980238002,-631.42653504,0.00019044,2]
[370361289,1751980238011,-631.42653504,0.00019044,2]
[370361291,1751980238021,-631.42653504,0.00019044,2]
[370361293,1751980238031,-631.42653504,0.00019044,2]
[370361295,1751980238041,-631.42653504,0.00019044,2]
[370361297,1751980238051,-631.42653504,0.00019044,2]
[370361298,1751980238060,-631.42653504,0.00019044,2]
[370361299,1751980238070,-631.42653504,0.00019044,2]
[370361300,1751980238080,-631.42653504,0.00019044,2]
[370361301,1751980238091,-717.01990979,0.00019044,2]
[370361302,1751980238100,-717.01990979,0.00019044,2]
[370361303,1751980238111,-717.01990979,0.00019044,2]
[370361304,1751980238120,-717.01990979,0.00019044,2]
[370361305,1751980238130,-717.01990979,0.00019044,2]
[370361306,1751980238139,-12323.87048625,0.00019045,2]
[370361307,1751980238153,-1042.7382093,0.00019045,2]
[370361308,1751980238164,-1832.59836117,0.00019045,2]
[370361309,1751980238176,-44539.17902494,0.00019045,2]
[370361310,1751980238188,-10791.61391834,0.00019045,2]
[370361311,1751980238198,-1390.320449,0.0001906,2]
[370361312,1751980238209,-2164.73229187,0.00019062,2]
[370361313,1751980238220,-366.58247,0.00019062,2]
[370361314,1751980238230,-208.86527392,0.00019078,2]
[370361315,1751980238239,-770.17471178,0.00019089,2]
[370361316,1751980238249,-159.66946847,0.00019121,2]
[370361317,1751980238258,-486.0,0.00019127,2]
[370361318,1751980238268,-1390.320449,0.00019157,2]
[370361319,1751980238277,-151.0,0.00019166,2]
[370361320,1751980238291,-500.0,0.00019166,2]
[370361321,1751980238301,-500.0,0.00019166,2]
[370361322,1751980238311,-500.0,0.00019166,2]
[370361323,1751980238321,-500.0,0.00019166,2]
[370361324,1751980238331,-500.0,0.00019166,2]
[370361325,1751980238342,-273.38021273,0.00019166,2]
[370361326,1751980238355,-226.61978727,0.00019166,2]
[370361327,1751980238365,-500.0,0.00019166,2]
[370361328,1751980238374,-500.0,0.00019166,2]
[370361329,1751980238384,-325.71184983,0.00019166,2]
[370361330,1751980238395,-151.0,0.00019166,2]
[370361331,1751980238407,-495.73098417,0.00019166,2]
[370361332,1751980238417,-151.0,0.00019166,2]
[370361333,1751980238425,-151.0,0.00019166,2]
[370361334,1751980238434,-151.0,0.00019178,2]
[370361335,1751980238444,-151.0,0.00019178,2]
[370361336,1751980238453,-460.0,0.00019178,2]
[370361337,1751980238462,-460.0,0.00019178,2]
[370361338,1751980238471,-317.66,0.00019178,2]
[370361339,1751980238481,-151.0,0.00019178,2]
[370361340,1751980238491,-460.0,0.00019178,2]
[370361341,1751980238500,-95.77521467,0.00019178,2]
[370361342,1751980238512,-364.22478533,0.00019178,2]
[370361343,1751980238521,-460.0,0.00019178,2]
[370361344,1751980238531,-460.0,0.00019178,2]
[370361345,1751980238541,-151.0,0.00019178,2]
[370361346,1751980238551,-460.0,0.00019178,2]
[370361347,1751980238561,-460.0,0.00019178,2]
[370361348,1751980238571,-151.0,0.00019178,2]
[370361349,1751980238580,-460.0,0.00019178,2]
[370361350,1751980238592,-151.0,0.00019178,2]
[370361351,1751980238602,-151.0,0.00019178,2]
[370361352,1751980238612,-151.0,0.00019178,2]
[370361353,1751980238622,-6.18034658,0.00019178,2]
[370361354,1751980238634,-144.81965342,0.00019178,2]
[370361355,1751980238644,-329.49139739,0.00019178,2]
[370361356,1751980238656,-130.50860261,0.00019178,2]
[370361357,1751980238666,-249.10078812,0.00019178,2]
[370361358,1751980238676,-149.28770045,0.00019178,2]
[370361388,1751980241224,-35.62359484,0.00019178,2]
[370361409,1751980242899,-275.08870471,0.00019178,2]
[370361410,1751980242909,-460.0,0.00019178,2]
[370361411,1751980242919,-151.0,0.00019178,2]
[370361412,1751980242929,-151.0,0.00019178,2]
[370361413,1751980242939,-151.0,0.00019178,2]
[370361415,1751980242949,-151.0,0.00019178,2]
[370361417,1751980242959,-269.766501,0.00019178,2]
[370361419,1751980242969,-460.0,0.00019178,2]
[370361421,1751980242979,-151.0,0.00019178,2]